bitfinex/quotes_BTCUSD_20260311
["timestamp","ask_amount","ask_price","bid_price","bid_amount"]
[1773230718329,0.07242012,69114.0,69109.0,0.0002]
[1773230718330,7.5e-05,69114.0,69109.0,0.0002]
[1773230718913,0.07233586,69122.0,69110.0,0.08958377]
[1773230719717,0.07233586,69125.0,69110.0,0.08958377]
[1773230720059,0.07240668,69127.0,69110.0,0.08958377]
[1773230720200,0.07233079,69127.0,69110.0,0.08958377]
[1773230720401,0.0725496,69130.0,69110.0,0.08958377]
[1773230720632,0.0725496,69130.0,69112.0,0.09190438]
[1773230722154,0.1639694,69130.0,69112.0,0.09190438]
[1773230722371,0.0914198,69129.0,69110.0,0.07234837]
[1773230722570,0.0914198,69129.0,69109.0,0.07254738]
[1773230722571,0.07232959,69128.0,69113.0,0.00102]
[1773230722865,0.0914198,69127.0,69113.0,0.00102]
[1773230723937,0.0914198,69127.0,69113.0,0.0013508]
[1773230724186,0.0926198,69127.0,69114.0,0.0012]
[1773230724380,0.0914198,69127.0,69114.0,0.0012]
[1773230724990,0.07233168,69126.0,69115.0,0.07234319]
[1773230726002,0.07233168,69126.0,69115.0,0.07226819]
[1773230726610,0.16375086,69127.0,69115.0,0.07226819]
[1773230726815,0.16375086,69127.0,69115.0,0.07219319]
[1773230727878,0.16375086,69127.0,69116.0,0.0012]
[1773230728087,0.00022001,69126.0,69116.0,0.0012]
[1773230728243,7.5e-05,69123.0,69117.0,0.0012]
[1773230728665,7.5e-05,69123.0,69115.0,0.07219319]
[1773230728864,7.5e-05,69123.0,69118.0,0.0012]
[1773230729215,7.5e-05,69119.0,69118.0,0.07234005]
[1773230729392,7.5e-05,69123.0,69119.0,0.0012]
[1773230729909,7.5e-05,69123.0,69120.0,0.0012]
[1773230730135,0.0914948,69123.0,69120.0,0.0012]
[1773230730588,0.0914948,69123.0,69119.0,0.0001059]
[1773230730787,0.0914948,69123.0,69121.0,0.0012]
[1773230730956,0.0914948,69123.0,69121.0,0.0013059]
[1773230730957,7.5e-05,69123.0,69121.0,0.0013059]
[1773230731160,0.07254836,69130.0,69122.0,0.0012]
[1773230731787,0.0914198,69129.0,69114.0,0.0002249]
[1773230731996,0.0914198,69129.0,69105.0,0.13108]
[1773230732195,0.0914198,69129.0,69106.0,0.0012]
[1773230732610,0.0914198,69129.0,69107.0,0.0012]
[1773230732805,0.0914198,69129.0,69105.0,0.20383349]
[1773230732987,0.0924198,69129.0,69106.0,0.0012]
[1773230733227,0.07232959,69128.0,69105.0,0.20383349]
[1773230733419,0.0914198,69127.0,69107.0,0.0012]
[1773230733879,0.0914198,69127.0,69108.0,0.0012]
[1773230734175,0.0914198,69127.0,69105.0,0.07235364]
[1773230734338,0.0914198,69127.0,69109.0,0.0012]
[1773230734723,0.0914198,69127.0,69105.0,0.07235364]
[1773230734724,0.0914198,69127.0,69110.0,0.0012]
[1773230735473,0.0914198,69125.0,69110.0,0.0012]
[1773230736529,0.0914198,69125.0,69110.0,0.07354809]
[1773230736730,0.0914198,69125.0,69110.0,0.0012]
[1773230737330,0.07233377,69124.0,69110.0,0.0012]
[1773230737578,0.0914198,69123.0,69110.0,0.0012]
[1773230738128,7.5e-05,69114.0,69110.0,0.0012]
[1773230738551,7.5e-05,69114.0,69104.0,0.20439376]
[1773230738758,7.5e-05,69114.0,69105.0,0.0012]
[1773230739133,7.5e-05,69114.0,69106.0,0.0012]
[1773230739346,0.0914198,69118.0,69104.0,0.13204]
[1773230739535,0.0914198,69116.0,69105.0,0.0012]
[1773230739739,0.0914198,69116.0,69106.0,0.001275]
[1773230740303,0.0914198,69116.0,69107.0,0.0012]
[1773230740604,0.0914198,69116.0,69106.0,7.5e-05]
[1773230743301,0.07234319,69115.0,69106.0,7.5e-05]
[1773230743503,0.0914198,69114.0,69106.0,7.5e-05]
[1773230743687,0.0914198,69114.0,69103.0,0.0012]
[1773230743896,0.0914198,69114.0,69103.0,0.07355574]
[1773230744557,0.0914198,69114.0,69103.0,0.0012]
[1773230745111,0.0914198,69114.0,69102.0,0.07365641]
[1773230745298,0.0914198,69114.0,69104.0,0.0012]
[1773230745499,0.07234528,69113.0,69105.0,0.07235366]
[1773230745699,0.07234528,69113.0,69105.0,0.0012]
[1773230747717,0.0723411,69118.0,69105.0,0.07355359]
[1773230747915,0.1637609,69118.0,69105.0,0.07355359]
[1773230748637,0.07234005,69118.0,69106.0,0.06064118]
[1773230749057,0.07241432,69119.0,69106.0,0.06064118]
[1773230749234,0.07241432,69119.0,69110.0,7.5e-05]
[1773230749433,0.07241432,69119.0,69111.0,0.0012]
[1773230749842,0.08744269,69119.0,69111.0,0.0012]
[1773230750057,7.5e-05,69119.0,69111.0,0.07354665]
[1773230750227,7.5e-05,69123.0,69111.0,0.07354665]
[1773230750411,0.07232959,69128.0,69112.0,0.13708]
[1773230750608,0.07254883,69129.0,69113.0,0.06013467]
[1773230750808,0.07232882,69129.0,69113.0,0.06013467]
[1773230751858,0.07232882,69129.0,69114.0,0.07234424]
[1773230752126,0.08736769,69128.0,69115.0,0.0012]
[1773230752296,0.08736769,69128.0,69110.0,0.07242329]
[1773230752297,0.08736769,69128.0,69110.0,7.5e-05]
[1773230752504,0.08736769,69128.0,69111.0,0.0012]
[1773230754294,0.08736769,69126.0,69111.0,0.0012]
[1773230756270,0.08736769,69124.0,69111.0,0.0012]
[1773230758808,0.07233482,69123.0,69111.0,0.0012]
[1773230759050,0.08164075,69122.0,69111.0,0.0012]
[1773230759252,0.08164075,69122.0,69119.0,7.5e-05]
[1773230761052,0.07233691,69121.0,69119.0,7.5e-05]
[1773230761228,0.07233691,69121.0,69114.0,0.001275]
[1773230761440,0.08171575,69120.0,69110.0,7.5e-05]
[1773230761622,0.08171575,69120.0,69109.0,0.0012]
[1773230762941,0.08271575,69120.0,69109.0,0.0012]
[1773230763165,0.08171575,69118.0,69109.0,0.0012]
[1773230763384,0.08171575,69118.0,69102.0,0.0012999]
[1773230763385,0.08171575,69118.0,69108.0,0.0012]
[1773230763905,0.07233377,69124.0,69101.0,1.30425677]
[1773230764112,0.08171575,69123.0,69101.0,1.30425677]
[1773230764368,0.08171575,69123.0,69102.0,0.0012]
[1773230764766,0.08171575,69123.0,69103.0,0.0012]
[1773230765185,0.13172354,69118.0,69103.0,0.0012]
[1773230765992,7.5e-05,69114.0,69103.0,0.0012]
[1773230767223,7.5e-05,69106.0,69103.0,0.0012]
[1773230767633,7.5e-05,69106.0,69101.0,1.30425677]
[1773230767847,7.5e-05,69106.0,69104.0,0.0012]
[1773230768835,7.5e-05,69106.0,69101.0,1.30425677]
[1773230769196,7.5e-05,69106.0,69102.0,0.0012]
[1773230769615,7.5e-05,69106.0,69101.0,1.30425677]
[1773230769816,7.5e-05,69106.0,69103.0,0.0012]
[1773230770050,7.5e-05,69106.0,69104.0,0.0012]
[1773230772142,7.5e-05,69106.0,69101.0,1.37661435]
[1773230772349,7.5e-05,69106.0,69105.0,0.0012]
[1773230772750,7.5e-05,69106.0,69101.0,1.30425677]
[1773230772954,7.5e-05,69106.0,69102.0,0.0012]
[1773230773148,7.5e-05,69106.0,69103.0,0.1]
[1773230773355,7.5e-05,69106.0,69104.0,0.0012]
[1773230773708,7.5e-05,69106.0,69101.0,1.30425677]
[1773230773863,0.1303999,69105.0,69102.0,0.0012]
[1773230774062,0.07235471,69104.0,69097.0,0.0012]
[1773230774308,0.1303999,69103.0,69095.0,0.0012]
[1773230775052,0.1303999,69103.0,69084.0,7.5e-05]
[1773230775258,0.1303999,69103.0,69086.0,0.17591692]
[1773230775880,0.1313999,69103.0,69086.0,0.17591692]
[1773230776111,7.5e-05,69106.0,69086.0,0.17591692]
[1773230776316,7.5e-05,69106.0,69087.0,0.07237251]
[1773230776676,0.1303999,69109.0,69087.0,0.07237251]
[1773230777271,0.07241967,69114.0,69087.0,0.07237251]
[1773230778067,0.07260797,69118.0,69087.0,0.07237251]
[1773230778676,0.07260797,69118.0,69087.0,0.07337251]
[1773230778881,0.20350787,69118.0,69087.0,0.07337251]
[1773230779054,0.20350787,69118.0,69087.0,0.07237251]
[1773230779255,0.1308999,69117.0,69088.0,0.13988]
[1773230780978,7.5e-05,69102.0,69089.0,0.07237042]
[1773230781862,0.07234214,69116.0,69089.0,0.07237042]
[1773230781863,0.13145017,69115.0,69089.0,0.28909446]
[1773230782059,0.13145017,69115.0,69091.0,0.14319508]
[1773230782787,7.5e-05,69093.0,69091.0,0.14319508]
[1773230782981,0.20379441,69114.0,69092.0,0.07236727]
[1773230783351,0.0002675,69118.0,69093.0,0.17591692]
[1773230783564,0.07260814,69118.0,69094.0,0.0012]
[1773230783941,0.13145017,69117.0,69094.0,0.0012]
[1773230784556,0.13145017,69117.0,69093.0,0.17591692]
[1773230784760,0.13145017,69117.0,69094.0,0.0012]
[1773230784967,0.07234214,69116.0,69106.0,7.5e-05]
[1773230785160,0.13145017,69115.0,69106.0,0.001275]
[1773230785810,0.13145017,69115.0,69106.0,7.5e-05]
[1773230787010,0.07234424,69114.0,69106.0,7.5e-05]
[1773230787210,0.13145017,69113.0,69106.0,0.001275]
[1773230788297,0.13145017,69113.0,69102.0,7.5e-05]
[1773230788298,0.13145017,69113.0,69103.0,0.0012]
[1773230788632,0.13145017,69113.0,69101.0,0.0014]
[1773230789418,0.13145017,69111.0,69101.0,0.0002]
[1773230789618,0.13145017,69111.0,69101.0,0.0014]
[1773230791414,0.07234843,69110.0,69101.0,0.0014]
[1773230791616,0.20379866,69110.0,69101.0,0.0014]
[1773230792131,0.07234843,69110.0,69101.0,0.0002]
[1773230792306,0.13145023,69109.0,69102.0,0.0012]
[1773230793317,0.07242343,69110.0,69102.0,0.0012]
[1773230793890,0.07234121,69117.0,69103.0,0.24827267]
[1773230794098,7.5e-05,69106.0,69103.0,0.24827267]
[1773230794385,0.07242014,69114.0,69103.0,0.24827267]
[1773230794588,0.07242014,69114.0,69104.0,0.0012]
[1773230794589,0.001,69109.0,69104.0,0.0012]
[1773230794801,0.08901631,69109.0,69104.0,0.0012]
[1773230795646,0.07242014,69114.0,69104.0,0.0012]
[1773230795786,0.07234633,69112.0,69104.0,0.07355386]
[1773230796833,0.16136264,69113.0,69104.0,0.07355386]
[1773230797002,0.07260756,69118.0,69105.0,0.05436017]
[1773230797189,1e-08,69120.0,69105.0,0.05436017]
[1773230797392,1e-08,69123.0,69107.0,0.05436017]
[1773230797594,1e-08,69123.0,69111.0,0.05436017]
[1773230797960,1e-08,69123.0,69114.0,0.07234424]
[1773230798139,1e-08,69123.0,69114.0,0.12642726]
[1773230798293,1e-08,69123.0,69114.0,0.07234424]
[1773230798501,1e-08,69123.0,69115.0,0.05408302]
[1773230799106,1e-08,69123.0,69116.0,0.17591692]
[1773230800003,1e-08,69123.0,69117.0,0.0723411]
[1773230800203,1e-08,69123.0,69118.0,0.0012]
[1773230800662,1e-08,69123.0,69107.0,0.17335382]
[1773230800663,0.08901631,69122.0,69119.0,0.10357268]
[1773230800869,0.08901631,69122.0,69120.0,0.0012]
[1773230801098,1e-08,69123.0,69120.0,0.0012]
[1773230801301,1e-08,69123.0,69118.0,0.0012]
[1773230803202,0.08901631,69122.0,69119.0,0.0012]
[1773230803779,0.08901631,69122.0,69114.0,7.5e-05]
[1773230804082,0.08901631,69122.0,69106.0,7.5e-05]
[1773230804406,0.08901631,69120.0,69107.0,0.0012]
[1773230804781,0.08901631,69120.0,69106.0,7.5e-05]
[1773230804984,0.08901631,69120.0,69107.0,0.05068966]
[1773230806180,0.09001631,69120.0,69107.0,0.05068966]
[1773230806524,0.08901631,69118.0,69108.0,0.0012]
[1773230808564,0.0723411,69117.0,69108.0,0.0012]
[1773230808765,0.0723411,69117.0,69109.0,0.0012]
[1773230809089,0.16135741,69117.0,69109.0,0.0012]
[1773230809473,0.0723411,69117.0,69109.0,0.0012]
[1773230809858,0.08669181,69116.0,69109.0,0.0012]
[1773230810577,0.07234319,69115.0,69109.0,0.0012]
[1773230811346,0.07125295,69115.0,69109.0,0.0012]
[1773230811565,0.08676681,69114.0,69109.0,0.0012]
[1773230812370,0.08676681,69114.0,69110.0,0.0012]
[1773230812575,0.08669181,69112.0,69110.0,0.0012]
[1773230813259,0.08653973,69112.0,69107.0,0.04948966]
[1773230813491,0.08653973,69112.0,69110.0,0.0012]
[1773230813696,0.08608343,69112.0,69110.0,0.0012]
[1773230814244,0.08708343,69112.0,69103.0,0.0012]
[1773230814393,0.08708343,69112.0,69095.0,0.0002]
[1773230814394,0.08608343,69112.0,69095.0,0.0002]
[1773230814710,0.08669181,69110.0,69095.0,0.0002]
[1773230814918,0.08669181,69110.0,69098.0,0.0012]
[1773230815293,0.08669181,69110.0,69095.0,0.0002]
[1773230815294,0.08669181,69110.0,69101.0,0.0002]
[1773230815645,0.08669181,69110.0,69098.0,0.0012]
[1773230815848,0.08669181,69110.0,69095.0,0.0002]
[1773230816055,0.08669181,69110.0,69098.0,0.0012]
[1773230816416,0.08669181,69110.0,69097.0,0.001275]
[1773230816615,0.08627503,69108.0,69097.0,0.001275]
[1773230816954,0.08627503,69108.0,69097.0,7.5e-05]
[1773230817867,0.08627503,69108.0,69093.0,7.5e-05]
[1773230817868,0.08627503,69106.0,69093.0,0.001275]
[1773230818276,0.08627503,69106.0,69093.0,7.5e-05]
[1773230818660,0.08627503,69104.0,69093.0,7.5e-05]
[1773230820346,0.08627503,69104.0,69089.0,7.5e-05]
[1773230820546,0.0723589,69100.0,69089.0,0.001275]
[1773230820751,0.08627503,69099.0,69089.0,0.001275]
[1773230821196,0.08627503,69099.0,69089.0,7.5e-05]
[1773230821407,0.08627503,69099.0,69083.0,0.0012]
[1773230821606,0.0723589,69100.0,69085.0,0.04176001]
[1773230822705,0.0723589,69101.0,69093.0,0.0002]
[1773230823015,0.15863393,69101.0,69093.0,0.0002]
[1773230823292,0.08627503,69100.0,69093.0,0.0002]
[1773230823489,0.08627503,69100.0,69063.0,7.5e-05]
[1773230823490,0.00023,69100.0,69063.0,7.5e-05]
[1773230823617,0.08747503,69099.0,69065.0,0.04070521]
[1773230823817,0.08747503,69099.0,69063.0,7.5e-05]
[1773230824074,0.08747503,69099.0,69064.0,0.0012]
[1773230824285,0.08627503,69079.0,69063.0,7.5e-05]
[1773230824663,0.07238194,69078.0,69063.0,0.0724726]
[1773230825077,0.08627503,69077.0,69063.0,7.5e-05]
[1773230825454,0.08747503,69077.0,69059.0,0.0001219]
[1773230825911,0.08747503,69077.0,69049.0,0.07241231]
[1773230825912,0.08627503,69076.0,69044.0,1e-08]
[1773230826071,0.08627503,69068.0,69046.0,0.03546029]
[1773230826271,0.08627503,69068.0,69047.0,0.00116]
[1773230826474,0.08627503,69068.0,69048.0,0.03546029]
[1773230826686,0.07238613,69074.0,69049.0,0.07241234]
[1773230826900,0.08627503,69073.0,69049.0,0.07241234]
[1773230827439,0.08627503,69067.0,69050.0,0.00116]
[1773230827990,0.001,69068.0,69051.0,0.03479966]
[1773230828411,0.08627503,69071.0,69051.0,0.03479966]
[1773230828625,0.0726315,69080.0,69051.0,0.03479966]
[1773230828998,0.0726315,69080.0,69053.0,0.08578119]
[1773230829154,0.08627503,69079.0,69054.0,0.00116]
[1773230829318,0.08627503,69079.0,69055.0,0.08578119]
[1773230829528,7.5e-05,69063.0,69055.0,0.08578119]
[1773230829729,0.0726315,69080.0,69055.0,0.08578119]
[1773230830165,0.0002516,69080.0,69055.0,0.08578119]
[1773230830364,0.07263164,69080.0,69055.0,0.08578119]
[1773230830770,0.08400538,69092.0,69057.0,0.08578119]
[1773230830960,0.08627503,69090.0,69057.0,0.08578119]
[1773230831162,0.08627503,69090.0,69058.0,0.00116]
[1773230831371,0.09889703,69090.0,69059.0,0.08578119]
[1773230831617,0.09889703,69090.0,69059.0,0.08694119]
[1773230831766,7.5e-05,69067.0,69059.0,0.08694119]
[1773230831968,0.08627503,69080.0,69059.0,0.08694119]
[1773230832511,0.08627503,69080.0,69060.0,0.08694119]
[1773230832811,0.07238089,69079.0,69061.0,0.07239976]
[1773230833016,0.08627503,69078.0,69061.0,0.07355976]
[1773230833366,0.08627503,69078.0,69062.0,0.00116]
[1773230833560,0.07237331,69087.0,69064.0,0.08578119]
[1773230833911,7.5e-05,69084.0,69064.0,0.08578119]
[1773230834416,0.08635003,69084.0,69064.0,0.08578119]
[1773230834809,7.5e-05,69080.0,69066.0,0.07239452]
[1773230835126,0.08627503,69079.0,69063.0,0.13419107]
[1773230835431,0.08627503,69079.0,69064.0,0.00116]
[1773230836133,7.5e-05,69076.0,69064.0,0.00116]
[1773230836365,0.08627503,69075.0,69064.0,0.00116]
[1773230836950,0.15866116,69074.0,69064.0,0.00116]
[1773230837098,7.5e-05,69071.0,69064.0,0.00116]
[1773230838097,7.5e-05,69071.0,69064.0,0.001085]
[1773230839168,7.5e-05,69071.0,69064.0,0.00101]
[1773230839343,0.08627503,69070.0,69055.0,0.00116]
[1773230839545,0.08627503,69069.0,69055.0,0.00116]
[1773230839773,0.08627503,69069.0,69057.0,0.0002]
[1773230840295,0.08627503,69069.0,69054.0,0.00116]
[1773230840904,0.08627503,69069.0,69045.0,0.0002516]
[1773230841203,0.0837009,69059.0,69037.0,0.001235]
[1773230841353,0.0837009,69057.0,69037.0,0.001235]
[1773230841553,0.0849009,69057.0,69038.0,0.07242304]
[1773230841747,0.0849009,69057.0,69037.0,0.07365793]
[1773230842013,0.0849009,69057.0,69042.0,0.00116]
[1773230842970,0.0837009,69055.0,69042.0,0.00116]
[1773230843195,0.0837009,69055.0,69033.0,0.08103956]
[1773230843196,0.0880235,69052.0,69031.0,0.07243082]
[1773230843409,0.0837009,69051.0,69032.0,0.07270984]
[1773230843606,0.0849009,69051.0,69032.0,0.0002798]
[1773230843800,0.0849009,69051.0,69032.0,0.07270892]
[1773230844011,0.0837009,69049.0,69032.0,0.0002798]
[1773230844911,0.0012,69052.0,69035.0,0.08103956]
[1773230845054,0.0012,69052.0,69037.0,0.08103956]
[1773230845055,0.07241024,69051.0,69037.0,0.08103956]
[1773230845637,0.001,69049.0,69037.0,0.08103956]
[1773230846722,0.07241024,69051.0,69036.0,0.00116]
[1773230847670,3.0,69049.0,69037.0,0.0002]
[1773230847904,2.60561458,69049.0,69038.0,0.08103956]
[1773230848125,0.86742494,69049.0,69038.0,0.08103956]
[1773230848994,0.86742494,69049.0,69037.0,0.0002]
[1773230849197,0.86742494,69049.0,69038.0,0.00116]
[1773230849418,0.86742494,69049.0,69038.0,0.08219956]
[1773230849648,0.21327428,69049.0,69040.0,0.08103956]
[1773230850218,0.21327428,69049.0,69041.0,0.00116]
[1773230850416,0.21327428,69049.0,69037.0,0.0002]
[1773230850417,0.2856867,69049.0,69037.0,0.0002]
[1773230850865,0.2856867,69049.0,69038.0,0.00116]
[1773230851709,0.2856867,69049.0,69039.0,0.00116]
[1773230852063,0.3693876,69049.0,69039.0,0.00116]
[1773230852260,0.0837009,69048.0,69035.0,0.00116]
[1773230852591,0.0837009,69048.0,69030.0,0.0002]
[1773230852800,0.0837009,69048.0,69036.0,0.00116]
[1773230853525,0.0847009,69048.0,69036.0,0.00116]
[1773230853725,0.0837009,69046.0,69036.0,0.00116]
[1773230854323,0.0836259,69046.0,69036.0,0.00116]
[1773230854527,0.0834759,69046.0,69033.0,0.00116]
[1773230854712,0.0834009,69046.0,69033.0,0.00116]
[1773230854894,0.0844009,69046.0,69033.0,0.00116]
[1773230855521,0.0834009,69046.0,69036.0,0.0002]
[1773230855769,0.0837009,69044.0,69036.0,0.0002]
[1773230856156,0.0837009,69044.0,69030.0,0.00116]
[1773230856536,0.0837009,69044.0,69015.0,0.07244749]
[1773230856759,0.0849009,69044.0,69022.0,0.0002]
[1773230856957,0.0859009,69044.0,69023.0,0.04794794]
[1773230857166,0.0837009,69044.0,69023.0,0.04794794]
[1773230857573,0.0847009,69044.0,69023.0,0.04794794]
[1773230857844,0.07241863,69043.0,69025.0,0.04748864]
[1773230858085,0.15611953,69044.0,69027.0,0.04748864]
[1773230858620,0.07241391,69048.0,69027.0,0.04748864]
[1773230860115,0.07241391,69048.0,69028.0,0.07243437]
[1773230860116,0.0837009,69047.0,69028.0,0.07243437]
[1773230860435,0.0837009,69047.0,69029.0,0.04809303]
[1773230860609,0.0837009,69047.0,69030.0,0.0012]
[1773230861034,0.0837009,69047.0,69028.0,0.07243437]
[1773230861240,0.0837009,69047.0,69029.0,0.0012]
[1773230861602,7.5e-05,69037.0,69029.0,0.0012]
[1773230862328,7.5e-05,69032.0,69026.0,0.07243437]
[1773230862528,7.5e-05,69032.0,69028.0,0.04630121]
[1773230862733,7.5e-05,69032.0,69026.0,0.07243437]
[1773230862982,7.5e-05,69032.0,69029.0,0.0012]
[1773230863282,0.07242073,69043.0,69026.0,0.07243437]
[1773230863283,0.07241745,69046.0,69031.0,0.04600654]
[1773230864243,0.07241745,69046.0,69031.0,0.04593154]
[1773230864652,0.07241549,69047.0,69032.0,0.07243017]
[1773230864852,0.0724001,69061.0,69033.0,0.04563769]
[1773230865052,0.07240024,69061.0,69033.0,0.04563769]
[1773230865387,0.0837009,69060.0,69033.0,0.04556269]
[1773230866156,0.0837009,69060.0,69035.0,0.04631179]
[1773230866352,0.07240024,69061.0,69035.0,0.04631179]
[1773230866557,0.0837009,69060.0,69036.0,0.0012]
[1773230866774,0.0837009,69058.0,69038.0,0.04631179]
[1773230867623,7.5e-05,69054.0,69038.0,0.04631179]
[1773230868489,7.5e-05,69050.0,69038.0,0.04631179]
[1773230868713,7.5e-05,69050.0,69039.0,0.04692353]
[1773230868934,7.5e-05,69054.0,69041.0,0.0454304]
[1773230869335,0.21463466,69066.0,69041.0,0.0454304]
[1773230869541,0.15609542,69066.0,69041.0,0.0454304]
[1773230870057,7.5e-05,69058.0,69041.0,0.0454304]
[1773230870286,7.5e-05,69058.0,69041.0,0.0465054]
[1773230870499,7.5e-05,69058.0,69041.0,0.0455054]
[1773230870707,7.5e-05,69058.0,69041.0,0.0465054]
[1773230870910,0.072405,69056.0,69043.0,0.04484911]
[1773230871288,0.072405,69056.0,69044.0,0.0012]
[1773230871496,0.072405,69056.0,69043.0,0.04484911]
[1773230871679,0.072405,69056.0,69045.0,0.04484911]
[1773230872280,0.072405,69056.0,69046.0,0.0012]
[1773230873094,0.072405,69057.0,69047.0,0.0012]
[1773230873921,0.15901356,69057.0,69047.0,0.0012]
[1773230874336,0.00022001,69056.0,69047.0,0.0012]
[1773230874542,0.08660856,69055.0,69047.0,0.0012]
[1773230875050,0.0724071,69054.0,69047.0,0.0012]
[1773230875440,0.0724071,69054.0,69041.0,0.07249573]
[1773230875613,0.08660856,69053.0,69042.0,0.0012]
[1773230876039,0.0724071,69054.0,69043.0,0.0012]
[1773230876450,0.0724071,69054.0,69042.0,0.04340627]
[1773230876657,0.0724071,69054.0,69044.0,0.0012]
[1773230877259,0.0724071,69054.0,69045.0,0.0012]
[1773230878689,0.0724071,69054.0,69041.0,7.5e-05]
[1773230878898,0.08601868,69053.0,69042.0,0.0012]
[1773230879283,0.07240919,69052.0,69042.0,0.0012]
[1773230879507,0.07240919,69052.0,69043.0,0.0012]
[1773230881137,0.0724071,69054.0,69043.0,0.04338177]
[1773230881693,3.00022001,69056.0,69045.0,0.04218177]
[1773230881918,3.07262528,69056.0,69044.0,0.07241758]
[1773230882119,0.08601868,69055.0,69044.0,0.07241758]
[1773230882343,3.07262528,69056.0,69044.0,0.07241758]
[1773230882553,2.2820833,69056.0,69045.0,0.04189901]
[1773230882751,2.22274969,69056.0,69045.0,0.04189901]
[1773230883281,2.13547149,69056.0,69045.0,0.04189901]
[1773230883438,2.13547149,69056.0,69050.0,7.5e-05]
[1773230883682,2.13547149,69056.0,69052.0,0.11402622]
[1773230883864,0.00022001,69054.0,69052.0,0.11402622]
[1773230884070,0.00022001,69054.0,69053.0,0.04618801]
[1773230884271,2.07394939,69056.0,69053.0,0.04618801]
[1773230884495,2.07394939,69056.0,69054.0,0.0012]
[1773230884681,2.14635485,69056.0,69055.0,0.0012]
[1773230884900,2.07394939,69056.0,69055.0,0.0012]
[1773230885763,2.07394939,69056.0,69051.0,0.07241016]
[1773230885969,2.07394939,69056.0,69052.0,0.04820695]
[1773230886165,2.07394939,69056.0,69052.0,0.0012]
[1773230887942,2.07394939,69056.0,69053.0,0.05684815]
[1773230888355,0.96376,69056.0,69054.0,0.04641856]
[1773230888542,0.96376,69056.0,69053.0,0.05684815]
[1773230888951,0.96376,69056.0,69052.0,0.0012]
[1773230889444,0.96376,69056.0,69052.0,0.07360883]
[1773230889648,0.96376,69056.0,69053.0,0.001]
[1773230890910,0.96376,69056.0,69052.0,0.0012]
[1773230891124,0.96376,69056.0,69052.0,0.07353365]
[1773230891908,7.5e-05,69054.0,69052.0,0.07353365]
[1773230893312,0.64808937,69056.0,69052.0,0.07453365]
[1773230893516,0.64830938,69056.0,69052.0,0.002125]
[1773230893731,0.62830938,69056.0,69052.0,0.07453413]
[1773230893901,0.62830938,69056.0,69052.0,0.07453411]
[1773230894420,0.62830938,69056.0,69052.0,0.07353411]
[1773230897236,0.08601868,69055.0,69034.0,0.05279851]
[1773230897454,0.08601868,69055.0,69039.0,0.0012]
[1773230898238,0.0724071,69054.0,69040.0,0.07242178]
[1773230898417,0.15842578,69054.0,69040.0,0.07242178]
[1773230899112,0.15842578,69054.0,69039.0,0.0012]
[1773230899316,0.0724071,69054.0,69039.0,0.07362237]
[1773230899518,0.08601868,69053.0,69039.0,0.12580667]
[1773230899720,0.08601868,69053.0,69039.0,0.0533843]
[1773230899925,0.08601868,69053.0,69039.0,0.0012]
[1773230900345,0.07240919,69052.0,69038.0,0.0002]
[1773230900628,0.09379594,69051.0,69039.0,0.0012]
[1773230901084,7.5e-05,69050.0,69039.0,0.0012]
[1773230902296,0.07240919,69052.0,69039.0,0.0012]
[1773230902506,0.09379594,69052.0,69041.0,7.5e-05]
[1773230903709,0.09379594,69052.0,69038.0,0.05146752]
[1773230903710,0.09379594,69052.0,69038.0,0.0002]
[1773230903940,0.09379594,69047.0,69033.0,0.0012]
[1773230904078,0.09379594,69039.0,69034.0,0.0012]
[1773230904281,0.09379594,69039.0,69020.0,0.07251686]
[1773230904282,0.09379594,69039.0,69020.0,7.5e-05]
[1773230904469,0.09379594,69037.0,69021.0,0.0012]
[1773230904668,0.09379594,69037.0,69020.0,7.5e-05]
[1773230904894,0.09379594,69037.0,69021.0,0.0012]
[1773230905093,0.09379594,69037.0,69022.0,0.0012]
[1773230905294,0.09379594,69037.0,69020.0,7.5e-05]
[1773230905295,0.02936652,69032.0,69023.0,0.0012]
[1773230905499,0.07242388,69038.0,69023.0,0.0012]
[1773230905500,0.09379594,69031.0,69023.0,0.0012]
[1773230906483,0.15348394,69029.0,69020.0,0.0012]
[1773230906682,0.15348394,69029.0,69007.0,0.07253077]
[1773230906683,0.09379594,69028.0,69016.0,0.0012]
[1773230907075,0.07243033,69032.0,69017.0,0.05021057]
[1773230907273,0.09379594,69038.0,69017.0,0.05021057]
[1773230908032,0.09379594,69038.0,69018.0,0.0012]
[1773230908234,0.09379594,69038.0,69019.0,0.04993484]
[1773230908665,0.07241863,69043.0,69021.0,0.04993484]
[1773230910065,7.5e-05,69041.0,69021.0,0.04993484]
[1773230910565,7.5e-05,69041.0,69023.0,0.04934297]
[1773230911063,7.5e-05,69041.0,69023.0,0.04954297]
[1773230911362,7.5e-05,69041.0,69023.0,0.04946797]
[1773230911718,7.5e-05,69041.0,69023.0,0.05146797]
[1773230911958,7.5e-05,69041.0,69023.0,0.05046797]
[1773230912332,7.5e-05,69037.0,69023.0,0.05146797]
[1773230912536,0.09387094,69037.0,69023.0,0.05046797]
[1773230912865,0.09379594,69035.0,69023.0,0.0002]
[1773230913022,0.09379594,69035.0,69024.0,0.0012]
[1773230913215,7.5e-05,69032.0,69024.0,0.0012]
[1773230914299,7.5e-05,69028.0,69024.0,0.0012]
[1773230914794,7.5e-05,69028.0,69025.0,0.07243752]
[1773230914950,7.5e-05,69028.0,69025.0,0.07236252]
[1773230916052,7.5e-05,69028.0,69025.0,0.07228752]
[1773230916478,7.5e-05,69028.0,69024.0,0.07363818]
[1773230917499,18.82077736,69023.0,69022.0,0.07244031]
[1773230917704,18.82077736,69023.0,69022.0,0.07364031]
[1773230919278,18.82077736,69023.0,69022.0,0.07363857]
[1773230919467,18.78226107,69023.0,69022.0,0.07383857]
[1773230919668,18.78106108,69023.0,69022.0,0.07383857]
[1773230919895,21.78106108,69023.0,69022.0,0.07383857]
[1773230921340,20.20058506,69023.0,69022.0,0.12835724]
[1773230921591,20.20058506,69023.0,69022.0,0.07383857]
[1773230921970,20.20058506,69023.0,69022.0,0.12804615]
[1773230922946,20.20058506,69023.0,69022.0,0.07383857]
[1773230923148,20.20058506,69023.0,69022.0,0.00116]
[1773230923971,20.20058506,69023.0,69016.0,0.0002]
[1773230924292,20.27302495,69023.0,69016.0,0.0002]
[1773230924457,0.09379594,69022.0,69017.0,0.00116]
[1773230924850,0.09379594,69022.0,69018.0,0.00116]
[1773230925001,0.09379594,69022.0,69008.0,0.21133527]
[1773230925002,0.09379594,69022.0,69019.0,0.00116]
[1773230925216,0.09379594,69022.0,69020.0,0.00116]
[1773230925406,0.09379594,69022.0,69021.0,0.00116]
[1773230925608,0.09379594,69022.0,69009.0,0.06356875]
[1773230925609,0.07244172,69021.0,69010.0,0.07245326]
[1773230925943,0.07244172,69021.0,69011.0,0.00116]
[1773230926771,0.072441,69022.0,69011.0,0.00116]
[1773230926973,0.072441,69022.0,69012.0,0.06327158]